Cogmind - Beta 16 @@@ ROGUE MODE // 2025.11.26 @ 12:50:56 Player: Infomantis Result: Destroyed by RE-ZTH(R) with Subdweller Laser Performance ------------- Evolutions (2) 1000 Regions Visited (9) 1800 Robots Destroyed (131) 655 Value Destroyed (7104) 7104 Prototype IDs (23) 460 Alien Tech Used (0) 0 Bonus (2129) 2129 TOTAL SCORE: 13148 Bonus ------- High Alert Combat Kills 1478 Follower Combat Kills 251 Entered Garrisons 400 Cogmind --------- Core Integrity 0/550 Matter 182/300 Energy 265/265 System Corruption 13% Temperature Cool (6) Movement Flying (80) Ox1 Location -8/Recycling Parts ------- > --- POWER (1) -------- Improved Ion Engine > --- PROPULSION (4) --- Flightbrick > --- UTILITY (3+3) ---- Improved Heat Sink Layered Light Armor Plating Drone Bay (2/2) > --- WEAPON (3) ------- Advanced Beam Rifle Assault Cannon > --- INVENTORY (5) ---- Huge Storage Unit Subdweller Laser Minigun Advanced EMP Blaster Advanced EMP Blaster Peak State ------------ > --- POWER ------------ Improved Ion Engine > --- PROPULSION ------- Flightbrick > --- UTILITY ---------- Improved Heat Sink Layered Light Armor Plating Drone Bay > --- WEAPON ----------- Precision Beam Rifle Advanced Beam Rifle Advanced EMP Blaster > --- INVENTORY -------- Huge Storage Unit Compact Matter Pod Drone Bay Assault Cannon Advanced EMP Blaster [Rating: 63] Favorites ----------- Power Improved Ion Engine Engine Improved Ion Engine Propulsion Light Treads Treads Light Treads Leg Aluminum Leg Wheel Compact Wheel Flight Unit Flightbrick Utility Large Storage Unit Device Improved Heat Sink Storage Large Storage Unit Hackware Authchip [R/NC] Protection Layered Light Armor Plating Weapon Heavy EM Shotgun Energy Gun Heavy EM Shotgun Energy Cannon Plasma Cannon Ballistic Gun Heavy Assault Rifle Ballistic Cannon Assault Cannon Launcher Missile Launcher Special Weapon Remote Datajack Slashing Weapon Blade Saw Build | -11 -10 -10 -10 -8 -8 -8 -8 -8 -8 ------- Run | Yrd Mat Min Sub Mat Gar Mat Gar Sto Rec Slots Evolved 4 | . . . . 4 . . . . . Power . | . . . . . . . . . . Propulsion 2 | . . . . 2 . . . . . Utility 1 | . . . . 1 . . . . . Weapon 1 | . . . . 1 . . . . . Parts Attached 102 | 7 1 2 11 18 22 . 14 20 7 Power 9 | 1 . . 1 1 3 . . 2 1 Engine 9 | 1 . . 1 1 3 . . 2 1 Core . | . . . . . . . . . . Reactor . | . . . . . . . . . . Propulsion 31 | 2 . . 2 10 7 . 5 5 . Treads 20 | 2 . . 2 7 5 . . 4 . Leg 7 | . . . . 1 1 . 5 . . Wheel 1 | . . . . . 1 . . . . Hover . | . . . . . . . . . . Flight 3 | . . . . 2 . . . 1 . Utility 24 | 2 1 . 3 3 5 . 4 5 1 Device 10 | 1 . . 1 1 2 . 1 3 1 Storage 4 | 1 1 . . 1 . . . 1 . Processor . | . . . . . . . . . . Hackware 1 | . . . . . . . 1 . . Protection 9 | . . . 2 1 3 . 2 1 . Artifact . | . . . . . . . . . . Weapon 38 | 2 . 2 5 4 7 . 5 8 5 Energy Gun 14 | 1 . 1 2 2 . . 1 6 1 Energy Cannon 5 | . . . . . 2 . 1 2 . Ballistic Gun 11 | 1 . 1 2 1 3 . 1 . 2 Ballistic Cannon 2 | . . . . . . . . . 2 Launcher 3 | . . . . 1 1 . 1 . . Special Weapon 2 | . . . 1 . . . 1 . . Impact Weapon . | . . . . . . . . . . Slashing Weapon 1 | . . . . . 1 . . . . Piercing Weapon . | . . . . . . . . . . Special Melee Weapon . | . . . . . . . . . . Unidentified Prototypes 9 | . . . . 3 . . . 6 . Parts Lost 30 | . . . 6 3 5 . 11 4 1 Power 1 | . . . 1 . . . . . . Propulsion 15 | . . . 1 2 4 . 5 3 . Utility 8 | . . . 3 1 1 . 2 1 . Weapon 6 | . . . 1 . . . 4 . 1 Highest Loss Streak 5 | . . . 5 1 2 . 3 3 1 To Critical Strikes . | . . . . . . . . . . Average Backups 11 | 5 10 14 13 9 11 12 11 11 4 Power . | . 1 1 . . . . . . . Propulsion 1 | . 1 2 2 1 1 1 1 1 . Utility 5 | 1 5 6 5 3 5 6 7 6 1 Weapon 3 | 1 3 3 4 3 5 5 2 3 3 Tool/Special . | . . . . . . . . . . Unused Backups 30 | 1 . 9 2 5 7 . . 5 1 Power 2 | . . 1 . 1 . . . . . Propulsion 3 | . . 1 . 1 . . . 1 . Utility 18 | . . 6 1 . 6 . . 4 1 Weapon 6 | 1 . 1 . 3 1 . . . . Tool/Special 1 | . . . 1 . . . . . . Average Slot Usage (%) 93 | . 100 100 99 77 97 100 94 97 48 Engine 10 | . 14 14 13 9 9 9 9 8 5 Treads 21 | . 28 28 28 16 28 36 9 26 . Leg 6 | . . . . 1 1 . 25 7 . Device 11 | . 14 14 5 10 13 18 9 8 13 Storage 9 | . 14 14 14 9 9 9 9 8 . Protection 4 | . . . 8 5 4 . 4 8 7 Energy Gun 12 | . 14 14 12 16 12 9 3 23 9 Energy Cannon 3 | . . . . . 4 9 11 . . Ballistic Gun 8 | . 14 14 13 9 9 9 3 . 2 Launcher 1 | . . . . . . . 6 1 1 Peak Build Rating 63 | 8 8 11 17 30 38 32 35 62 63 Average Rating 24 | 5 8 10 11 19 33 32 29 32 57 On Entrance 21 | . 8 8 10 17 28 32 32 27 56 Avg Prop Armor Cover (%) 10 | . . . . 4 13 . 3 4 . Naked Turns . | . . . . . . . . . . Heaviest Build 52 | 15 30 32 37 42 48 44 52 48 25 Greatest Support 86 | 40 40 40 40 66 86 82 82 80 24 Greatest Overweight (x) 4 | 1 . . . 2 2 . 4 2 1 Average Overweight (x) . | . . . . . . . . . . Largest Inventory Capacity 25 | 8 15 15 15 15 15 15 15 25 5 Average Capacity 14 | 7 14 15 15 15 15 15 15 14 5 Most Carried 15 | 8 14 15 15 15 15 15 15 15 5 Average Carried 13 | 5 10 14 14 12 14 15 14 14 4 Final Capacity 15 | 8 15 15 15 15 15 15 15 5 5 Final Carried 15 | 8 14 15 10 15 15 15 13 5 5 Class Distribution -------------------- 33% | Scavenger-Tank 26% | Mutant 26% | Scavenger-Gunner 10% | Scavenger-Mutant Dominant Class ---------------- Mutant | -10/Materials Mutant | -10/Mines Scavenger-Mutant | -10/Subcaves Scavenger-Tank | -8/Materials Scavenger-Gunner | -8/Garrison Scavenger-Gunner | -8/Materials Scavenger-Tank | -8/Garrison Scavenger-Tank | -8/Storage Mutant | -8/Recycling Resources | -11 -10 -10 -10 -8 -8 -8 -8 -8 -8 ----------- Run | Yrd Mat Min Sub Mat Gar Mat Gar Sto Rec Matter Collected 3385 | 327 126 84 179 352 917 . 360 880 160 Remotely . | . . . . . . . . . . Salvage Created 4943 | 198 110 . 219 457 1245 . 1093 1355 266 Parts 288 | 26 9 . 11 23 85 . 68 57 9 Haulers Intercepted 7 | . 1 . . 3 . . . 3 . Recyclers Shooed 4 | . . . . 2 . . . 2 . Parts Field Recycled . | . . . . . . . . . . Retrieved Matter . | . . . . . . . . . . Parts Self-Destructed . | . . . . . . . . . . Prevented . | . . . . . . . . . . Parts Restored . | . . . . . . . . . . Kills | -11 -10 -10 -10 -8 -8 -8 -8 -8 -8 ------- Run | Yrd Mat Min Sub Mat Gar Mat Gar Sto Rec Combat Hostiles Destroyed 106 | . 3 . 6 6 30 . 33 23 5 Guns 47 | . 3 . 6 6 20 . 3 5 4 Cannons 13 | . . . . . 3 . 10 . . AOE 37 | . . . . . 5 . 19 13 . Classes Destroyed 19 | 2 3 . 1 2 2 . 1 8 . Worker 1 | . . . . . . . . 1 . Builder 3 | . . . . . . . . 2 1 Tunneler 8 | 8 . . . . . . . . . Hauler 7 | . 1 . . 3 . . . 3 . Recycler 2 | 1 . . . . . . . 1 . Mechanic 1 | . . . . . . . . 1 . Operator 1 | . . . . . . . . 1 . Watcher 1 | . . . . . . . . 1 . Swarmer 28 | . 2 . . . 9 . 14 3 . Cutter 4 | . . . . . 2 . 2 . . Grunt 25 | . 1 . . 2 4 . 13 5 . Brawler 2 | . . . . . . . . 2 . Duelist 6 | . . . . . . . 1 5 . Protector 1 | . . . . . . . . 1 . Sentry 16 | . . . . 2 9 . . 4 1 Demolisher 2 | . . . . . . . . 2 . Hunter 7 | . . . . 2 4 . . 1 . Programmer 5 | . . . . . 2 . 3 . . Subdweller 10 | . . . 6 . . . . . 4 Thug 1 | . . . . . 1 . . . . Best Kill Streak 20 | 3 2 . 2 2 5 . 8 20 4 Combat Bots Only 13 | . 2 . 2 1 5 . 8 13 3 Max Kills in Single Turn 4 | 1 1 . 1 1 3 . 4 3 1 Gunslinging 1 | . . . . . 1 . . . . Exploded 4 | . . . . . 3 . 4 2 . Melee . | . . . . . . . . . . Uniques/NPCs Destroyed . | . . . . . . . . . . Combat | -11 -10 -10 -10 -8 -8 -8 -8 -8 -8 -------- Run | Yrd Mat Min Sub Mat Gar Mat Gar Sto Rec Hostile Shots Fired 492 | . 18 . 60 36 151 . 108 91 28 Missed 148 | . 6 . 15 11 52 . 28 25 11 Hits 344 | . 12 . 45 25 99 . 80 66 17 Melee 7 | . . . . . 3 . 2 2 . Projectile 337 | . 12 . 45 25 96 . 78 64 17 AOE 12 | . . . . . 1 . . 11 . Critical Strikes 24 | . . . 2 . 10 . 7 5 . Part Disruptions 2 | . . . . . 2 . . . . Damage Taken 6531 | . 100 . 1097 489 1545 . 1530 1442 328 Core 799 | . 7 . 225 31 154 . 172 155 55 Absorbed by Shields . | . . . . . . . . . . Redirected to Shielding 9 | . . . . . 9 . . . . Regen/Repaired (Parts) 105 | . . . . 105 . . . . . Core Remaining (%) 53 | 100 . . 7 . . . . . . Volleys Fired 390 | 19 10 . 54 28 90 . 113 46 30 Largest 3 | 2 2 . 2 3 3 . 3 3 2 Hottest 210 | 70 70 . 100 133 158 . 210 183 122 Shots Fired 733 | 38 20 . 94 80 194 . 169 98 40 Gun 527 | 38 20 . 85 79 167 . 31 77 30 Cannon 154 | . . . . . 24 . 117 3 10 Launcher 42 | . . . . . 3 . 21 18 . Special 10 | . . . 9 1 . . . . . Kinetic 205 | 19 10 . 41 30 88 . 2 3 12 Thermal 372 | 19 10 . 53 44 24 . 117 77 28 Explosive 20 | . . . . . 3 . 14 3 . Electromagnetic 136 | . . . . 6 79 . 36 15 . Robot Hit Streak 24 | 10 11 . 19 8 10 . 24 18 14 Robot Miss Streak 6 | 3 2 . 1 4 4 . 6 2 2 Penetration Max 1 | . . . . . 1 . . . . Secondary Targets 7 | . . . . . 6 . . 1 . Max Gunslinging Chain 1 | . . . . . 1 . . 1 . Shots Hit Robots 442 | 23 14 . 75 48 108 . 83 62 29 Core Hits 226 | 10 6 . 12 20 53 . 59 59 7 Critical Kills 3 | . . . 1 . . . 1 1 . Critical Parts Destroyed 1 | . . . . 1 . . . . . Critical Strikes 19 | 2 . . 5 3 . . 1 7 1 Burn 14 | 2 . . 3 2 . . . 6 1 Meltdown 2 | . . . . . . . 1 1 . Destroy 3 | . . . 2 1 . . . . . Melee Attacks . | . . . . . . . . . . Impact . | . . . . . . . . . . Slashing . | . . . . . . . . . . Piercing . | . . . . . . . . . . Sneak Attacks . | . . . . . . . . . . Combat Hostiles . | . . . . . . . . . . Follow-up Attacks . | . . . . . . . . . . Damage Inflicted 12750 | 307 179 32 1305 765 2800 . 3371 3394 597 Guns 6350 | 307 179 . 1305 765 1907 . 357 1050 480 Cannons 2163 | . . . . . 424 . 1545 77 117 Explosions 4196 | . . . . . 469 . 1462 2265 . Melee . | . . . . . . . . . . Ramming 41 | . . 32 . . . . 7 2 . Kinetic 2486 | 148 117 . 691 264 1089 . . 25 152 Thermal 5621 | 159 62 . 614 426 593 . 1750 1572 445 Explosive 1864 | . . . . . 300 . 1145 419 . Electromagnetic 2738 | . . . . 75 818 . 469 1376 . Impact . | . . . . . . . . . . Slashing . | . . . . . . . . . . Piercing . | . . . . . . . . . . Highest Corruption 13 | . . . . . 7 7 13 13 13 Average Corruption 10 | . . . . . 6 7 11 13 13 Corruption Purged . | . . . . . . . . . . Corruption Blocked . | . . . . . . . . . . Effects 159 | . . . . . 48 1 56 37 17 Message Errors 42 | . . . . . 16 . 13 10 3 Matter Fused 39 | . . . . . 9 . 16 8 6 Heat Flow Errors 15 | . . . . . 2 1 5 5 2 Energy Discharges 17 | . . . . . 7 . 5 4 1 Parts Rejected 1 | . . . . . 1 . . . . Parts Fused 2 | . . . . . . . 1 1 . Data Loss (minor) 17 | . . . . . 3 . 8 5 1 Data Loss (major) 8 | . . . . . 3 . 3 1 1 Misfires 13 | . . . . . 6 . 4 1 2 Alerts 1 | . . . . . . . 1 . . Misdirections 1 | . . . . . . . . . 1 Weapon Failures 3 | . . . . . 1 . . 2 . Overload Shots . | . . . . . . . . . . Overflow Damage 138 | . . . . . . . 116 22 . Projectiles 5 | . . . . . . . . 5 . Explosions 133 | . . . . . . . 116 17 . Melee . | . . . . . . . . . . Knockbacks 2 | . . . . . . . 1 . 1 Impact 1 | . . . . . . . 1 . . Kinetic 1 | . . . . . . . . . 1 Secondary . | . . . . . . . . . . Self-Inflicted Damage 722 | . . . . 97 76 . 443 106 . Shots 21 | . . . . 1 3 . 10 7 . Rammed 9 | . . 4 . . . . 2 3 . Targets Rammed 9 | . . 4 . . . . 2 3 . Kicked . | . . . . . . . . . . Crushed . | . . . . . . . . . . Highest Temperature 439 | 63 45 . 305 321 439 244 404 392 232 Average Temperature 99 | 19 19 . 150 111 88 133 108 138 67 Received Heat Transfer 1936 | . 12 . 646 81 279 . 432 405 81 Effects 6 | . . . . . 1 . 3 2 . Shutdowns 4 | . . . . . 1 . 2 1 . Energy Bleed 2 | . . . . . . . 1 1 . Siege Activations . | . . . . . . . . . . Martial Activations . | . . . . . . . . . . Shielding Activations . | . . . . . . . . . . Robots Disrupted . | . . . . . . . . . . Combat Hostiles . | . . . . . . . . . . Robots Corrupted 6 | . . . . . 2 . . 4 . Combat Hostiles 6 | . . . . . 2 . . 4 . Parts Fried 10 | . . . . 1 1 . 1 7 . Impact Corruptions . | . . . . . . . . . . Robots Melted 4 | . . . . . . . 2 1 1 Combat Hostiles 3 | . . . . . . . 1 1 1 Parts Melted 17 | 3 . . 2 1 1 . . 6 4 Heat Transferred 11399 | 629 185 . 1496 905 900 . 3150 3209 925 Parts Sabotaged . | . . . . . . . . . . Parts Stolen . | . . . . . . . . . . Parts Stripped . | . . . . . . . . . . Power Chain Reactions 9 | . . . . . 2 . 4 3 . Alert | -11 -10 -10 -10 -8 -8 -8 -8 -8 -8 ------- Run | Yrd Mat Min Sub Mat Gar Mat Gar Sto Rec Maximum Alert Level 5 | . . . . . 4 2 5 4 2 Low Security (%) 36 | 100 100 100 . 100 13 . . . . Level 1 4 | . . . . . 14 . . . 13 Level 2 11 | . . . . . 13 100 13 . 86 Level 3 15 | . . . . . 24 . 14 47 . Level 4 24 | . . . . . 33 . 43 52 . Level 5 6 | . . . . . . . 27 . . High Security . | . . . . . . . . . . Max Security . | . . . . . . . . . . Peak Influence 1835 | 10 40 5 . 66 1401 682 1835 1309 494 Initial 894 | . . 5 . . 2 682 439 894 473 Average 655 | 2 7 . . 20 753 676 1289 1137 439 Influence Increases 4515 | 45 115 . . 293 1469 4 1506 980 103 Destroy 0b10 Robot/C 2040 | . 60 . . 120 640 . 660 540 20 Destroy 0b10 Robot/NC 140 | 45 5 . . 15 5 . 10 55 5 Destroy Leader 256 | . 12 . . 46 30 . 50 118 . Allied During Kill 71 | . . . . . 2 . . 69 . Successful Hack 105 | . 7 . . 35 21 4 . 25 13 Select Force Hacks 90 | . 30 . . . . . . . 60 Disable Machine 180 | . . . . 30 30 . 30 90 . Anti-Garrison Action 1050 | . . . . . 600 . 450 . . Destroy Structure 418 | . 1 . . 17 126 . 201 68 5 Lose Combat Pursuer 165 | . . . . 30 15 . 105 15 . Influence Decreases 4149 | 45 101 14 . 289 72 729 347 1601 951 Entered New Map 2649 | . . 9 . . 2 719 237 941 741 Time Decay 1010 | 45 101 5 . 279 . 10 . 380 190 Lost Part 220 | . . . . 10 50 . 110 40 10 Lost Ally 270 | . . . . . 20 . . 240 10 Squads Dispatched 10 | . 1 . . 1 . . . 8 . Investigation 1 | . 1 . . . . . . . . Extermination . | . . . . . . . . . . Reinforcement 4 | . . . . 1 . . . 3 . Assault 5 | . . . . . . . . 5 . Garrison . | . . . . . . . . . . Intercept . | . . . . . . . . . . Searches Triggered . | . . . . . . . . . . Construction Impeded 1 | . . . . . . . . 1 . Haulers Reinforced . | . . . . . . . . . . Active Scanning Responses . | . . . . . . . . . . Cargo Convoy Interrupts . | . . . . . . . . . . Stealth | -11 -10 -10 -10 -8 -8 -8 -8 -8 -8 --------- Run | Yrd Mat Min Sub Mat Gar Mat Gar Sto Rec Distress Signals 9 | . . . . 4 . . . 4 1 Communications Jammed . | . . . . . . . . . . Distress Signals . | . . . . . . . . . . Times Spotted 146 | . 4 . 6 14 29 . 37 51 5 Peak Tracking Total 14 | . 2 . 3 4 5 . 7 14 2 Tactical Retreats 9 | . . . . 2 1 . 5 1 . Traps | -11 -10 -10 -10 -8 -8 -8 -8 -8 -8 ------- Run | Yrd Mat Min Sub Mat Gar Mat Gar Sto Rec Traps Triggered 8 | . . . 1 . 4 . 2 1 . Indirectly 1 | . . . . . . . . 1 . Trap Hack Attempts . | . . . . . . . . . . Triggered . | . . . . . . . . . . Disarmed . | . . . . . . . . . . Reprogrammed . | . . . . . . . . . . Reused . | . . . . . . . . . . Traps Extracted . | . . . . . . . . . . Installed . | . . . . . . . . . . Triggered . | . . . . . . . . . . Machines | -11 -10 -10 -10 -8 -8 -8 -8 -8 -8 ---------- Run | Yrd Mat Min Sub Mat Gar Mat Gar Sto Rec Machines Disabled 33 | . . . 2 2 12 . 11 6 . Max in Single Turn 2 | . . . 1 2 2 . 2 2 . Garrison Relay 13 | . . . . . 8 . 5 . . Phase Generator 2 | . . . . . 1 . 1 . . Machines Repaired . | . . . . . . . . . . Machines Dismantled . | . . . . . . . . . . Machines Sabotaged . | . . . . . . . . . . Overloaded Fab Kills . | . . . . . . . . . . Hacking | -11 -10 -10 -10 -8 -8 -8 -8 -8 -8 --------- Run | Yrd Mat Min Sub Mat Gar Mat Gar Sto Rec Machines Accessed 27 | . 3 . 2 5 3 1 2 5 6 Terminals 18 | . 2 . . 3 3 . 2 5 3 Fabricators . | . . . . . . . . . . Repair Stations 1 | . . . . 1 . . . . . Recycling Units 4 | . 1 . . . . . . . 3 Scanalyzers . | . . . . . . . . . . Garrison Access 2 | . . . . 1 . 1 . . . Total Hacks 55 | . 6 . 4 12 5 2 2 13 11 Successful 28 | . 3 . 4 7 2 1 1 6 4 Failed 27 | . 3 . . 5 3 1 1 7 7 Catastrophic 4 | . . . . 1 1 . . . 2 Database Lockouts . | . . . . . . . . . . Manual 28 | . 5 . . 6 . . . 7 10 Terminals 40 | . 4 . . 9 5 . 2 13 7 Fabricators . | . . . . . . . . . . Repair Stations 2 | . . . . 2 . . . . . Recycling Units 6 | . 2 . . . . . . . 4 Scanalyzers . | . . . . . . . . . . Garrison Access 3 | . . . . 1 . 2 . . . Terminal Hacks 18 | . 2 . 4 2 2 . 1 5 2 Record 3 | . . . 3 . . . . . . Part Schematic 2 | . 1 . . . . . . . 1 Prototype ID Bank 1 | . . . . 1 . . . . . Open Door 2 | . . . . . 1 . . 1 . Branch Access Points 1 | . . . . 1 . . . . . Emergency Access Points 1 | . . . . . 1 . . . . Locate Traps 1 | . . . . . . . . 1 . Patrol Status 1 | . . . . . . . . 1 . Hauler Manifests 1 | . 1 . . . . . . . . Zone Layout 3 | . . . . . . . . 2 1 Garrison Registry 1 | . . . . . . . 1 . . Proto ID Catalog 1 | . . . 1 . . . . . . Fabricator Hacks . | . . . . . . . . . . Repair Station Hacks 2 | . . . . 2 . . . . . Scan Component 1 | . . . . 1 . . . . . Repair 1 | . . . . 1 . . . . . Recycling Unit Hacks . | . . . . . . . . . . Scanalyzer . | . . . . . . . . . . Garrison Access Hacks 2 | . . . . 1 . 1 . . . Unlock Access 2 | . . . . 1 . 1 . . . Unauthorized Hacks 6 | . 1 . . 2 . . . 1 2 Terminals 3 | . . . . 2 . . . 1 . Assimilate 1 | . . . . 1 . . . . . Botnet 1 | . . . . . . . . 1 . Skim 1 | . . . . 1 . . . . . Fabricators . | . . . . . . . . . . Repair Stations . | . . . . . . . . . . Recycling Units 3 | . 1 . . . . . . . 2 Tunnel 3 | . 1 . . . . . . . 2 Scanalyzers . | . . . . . . . . . . Garrison Access . | . . . . . . . . . . Data Cores Recovered . | . . . . . . . . . . Used . | . . . . . . . . . . Hacking Detections 17 | . 1 . . 4 3 . 1 5 3 Full Trace Events . | . . . . . . . . . . Feedback Events . | . . . . . . . . . . Feedback Blocked . | . . . . . . . . . . Robot Schematics Acquired . | . . . . . . . . . . Robots Built . | . . . . . . . . . . Authchips . | . . . . . . . . . . Time . | . . . . . . . . . . Total Robot Build Rating . | . . . . . . . . . . Part Schematics Acquired 2 | . 1 . . . . . . . 1 Parts Built . | . . . . . . . . . . Authchips . | . . . . . . . . . . Time . | . . . . . . . . . . Total Part Build Rating . | . . . . . . . . . . Part Studies Acquired . | . . . . . . . . . . Parts Repaired 1 | . . . . 1 . . . . . Time 32 | . . . . 32 . . . . . Parts Recycled . | . . . . . . . . . . Recycled Matter . | . . . . . . . . . . Retrieved Matter . | . . . . . . . . . . Retrieved Components . | . . . . . . . . . . Parts Scanalyzed . | . . . . . . . . . . Part Schematics Acquired . | . . . . . . . . . . Parts Damaged . | . . . . . . . . . . Bothacking | -11 -10 -10 -10 -8 -8 -8 -8 -8 -8 ------------ Run | Yrd Mat Min Sub Mat Gar Mat Gar Sto Rec Used RIF Installer . | . . . . . . . . . . Robots Hacked . | . . . . . . . . . . Non-combat . | . . . . . . . . . . Combat . | . . . . . . . . . . Robot Hacks Applied . | . . . . . . . . . . Relay Couplers Released 53 | . . . . . 31 . 22 . . Machine Destruction 53 | . . . . . 31 . 22 . . Fabnet Peak Effective % . | . . . . . . . . . . Robots Rewired 2 | . . . . . 2 . . . . Allies Hacked . | . . . . . . . . . . Hacks Repelled . | . . . . . . . . . . Allies | -11 -10 -10 -10 -8 -8 -8 -8 -8 -8 -------- Run | Yrd Mat Min Sub Mat Gar Mat Gar Sto Rec Total Allies 14 | . . . . . 2 . . 12 . Largest Group 12 | . . . . . 2 . . 12 . Highest-Rated Group 235 | . . . . . 51 . . 235 . Highest-Rated Ally 31 | . . . . . 31 . . 31 . Initial Warlord ECA Mod 26 | . . . . . . 15 15 26 26 Total Orders 1 | . . . . . . . . . 1 EXPLORE 1 | . . . . . . . . . 1 Ally Attacks 34 | . . . . . 2 . . 32 . Total Damage 521 | . . . . . 88 . . 433 . Kills 7 | . . . . . 2 . . 5 . Allies Corrupted . | . . . . . . . . . . Allies Melted . | . . . . . . . . . . Intel | -11 -10 -10 -10 -8 -8 -8 -8 -8 -8 ------- Run | Yrd Mat Min Sub Mat Gar Mat Gar Sto Rec Active Infowar (turns) 3865 | 159 490 892 312 767 1136 39 70 . . Seismic 3865 | 159 490 892 312 767 1136 39 70 . . Robot Analysis Total . | . . . . . . . . . . Derelict Logs Recovered 3 | . . 1 2 . . . . . . Drone Launches 3 | . . . . . . . . . 3 Drone Recoveries 1 | . . . . . . . . . 1 Exploration | -11 -10 -10 -10 -8 -8 -8 -8 -8 -8 ------------- Run | Yrd Mat Min Sub Mat Gar Mat Gar Sto Rec Turns Passed 8156 | 281 490 892 891 767 1859 39 1655 888 394 Spaces Moved 4258 | 129 276 534 376 259 1020 25 698 423 518 Core 9 | 9 . . . . . . . . . Treads 2748 | 120 276 534 376 259 620 25 159 379 . Legs 557 | . . . . . . . 539 18 . Wheels 400 | . . . . . 400 . . . . Hover . | . . . . . . . . . . Flight 544 | . . . . . . . . 26 518 Fastest Speed 40 | 50 160 160 160 145 130 156 155 40 40 Average Speed 148 | 153 160 160 160 221 144 156 183 155 42 Slowest Speed 400 | 160 160 160 160 320 232 156 400 320 80 Overloaded Moves . | . . . . . . . . . . Propulsion Burnouts . | . . . . . . . . . . Robots Hopped 3 | . . . . . . . . 2 1 Potential Cave-ins . | . . . . . . . . . . Cave-ins Triggered . | . . . . . . . . . . Exploration Rate (%) 50 | 6 33 60 19 25 94 6 78 83 98 Regions Visited 9 Branch Regions 4 Pre-discovered Areas 3 | . 1 . . . . . . . 2 Known Exits Taken 2 | . . . . 1 . 1 . . . Unknown Exits Taken 5 | 1 1 1 1 . . . . 1 . Scrap Searched . | . . . . . . . . . . Spaces Dug 16 | . . . . 1 . . 1 12 2 Terrain Destroyed 393 | . . . . 20 88 . 209 72 4 Melee . | . . . . . . . . . . Projectile 13 | . . . . 1 3 . 4 1 4 AOE 380 | . . . . 19 85 . 205 71 . Terrain Rammed . | . . . . . . . . . . Walls Destroyed . | . . . . . . . . . . Machines Disabled . | . . . . . . . . . . Actions | -11 -10 -10 -10 -8 -8 -8 -8 -8 -8 --------- Run | Yrd Mat Min Sub Mat Gar Mat Gar Sto Rec Total 5396 | 173 305 575 548 395 1246 25 905 571 653 Wait 363 | 7 12 15 88 57 30 . 47 27 80 Move 4245 | 128 275 533 375 259 1019 25 697 418 516 Hop 3 | . . . . . . . . 2 1 Pick Up 81 | 11 6 10 2 13 15 . 4 17 3 Fast Attach 59 | 5 . . . 11 10 . 8 19 6 Attach 25 | 2 . . 6 3 4 . 6 3 1 Detach 3 | . . . . 1 . . . 1 1 Swap 84 | . 1 2 16 7 31 . 12 8 7 Drop 102 | 1 1 11 7 16 26 . 6 27 7 Fire 390 | 19 10 . 54 28 90 . 113 46 30 Melee . | . . . . . . . . . . Ram . | . . . . . . . . . . Kick . | . . . . . . . . . . Crush 9 | . . 4 . . . . 2 3 . Escape Stasis 10 | . . . . . . . 10 . . Rewire 21 | . . . . . 21 . . . . Trap . | . . . . . . . . . . Miscellaneous 1 | . . . . . . . . . 1 Route ------- -11/Scrapyard -10/Materials (discovered 2 exits: [*Min] / *Sub) -10/Mines -10/Subcaves -8/Materials (discovered 4 exits: [*Fac] / *Sto x2 / Gar) -8/Garrison (discovered 3 exits: *Mat x3) -8/Materials -8/Garrison (discovered 3 exits: *Sto x3) -8/Storage (discovered 2 exits: [*Fac] / *Rec) -8/Recycling (discovered 1 exit: [*Fac]) History --------- Turn | Location | Event 5 | -11/Scrapyard | Discovered new exit (range 16) 282 | -11/Scrapyard | Entered Materials 302 | -10/Materials | Build established: Mutant 396 | -10/Materials | Discovered new exit (range 11) 503 | -10/Materials | Discovered new exit (range 13) 772 | -10/Materials | Entered Mines 809 | -10/Mines | Met a Derelict bent on vengeance 811 | -10/Mines | Joined a pair of Derelicts in attacking an 0b10 outpost 842 | -10/Mines | Learned Materials terminal intel 1103 | -10/Mines | Discovered new exit (range 8) 1664 | -10/Mines | Entered Subcaves 1848 | -10/Subcaves | Learned Materials garrison access intel 1916 | -10/Subcaves | A swath of the cavern ceiling suddenly collapsed 2102 | -10/Subcaves | Visited 4L-MR0's lab 2122 | -10/Subcaves | Build established: Scavenger-Mutant 2252 | -10/Subcaves | Core integrity fell below 50% 2314 | -10/Subcaves | Found Flightbrick 2363 | -10/Subcaves | Discovered new exit (range 8) 2398 | -10/Subcaves | Learned Materials terminal intel 2424 | -10/Subcaves | Visited Clippyterm 2429 | -10/Subcaves | Learned Research security intel 2493 | -10/Subcaves | Core integrity fell below 20% 2535 | -10/Subcaves | Lost 5 parts (1p1n2u1w) 2555 | -10/Subcaves | Entered Materials 2555 | -8/Materials | Evolved 4 slots: Propulsion x2, Utility x1, Weapon x1 2556 | -8/Materials | Loaded intel: 11 terminal locations 2557 | -8/Materials | Loaded intel: 1 garrison access location 2619 | -8/Materials | Discovered new exit (range 11) 2794 | -8/Materials | Repaired Hvy. Assault Rifle 2974 | -8/Materials | Identified exit to Storage 2974 | -8/Materials | Discovered new exit (range 16) 3108 | -8/Materials | Build established: Scavenger-Tank 3322 | -8/Materials | Identified exit to Garrison 3322 | -8/Materials | Entered Garrison 3410 | -8/Garrison | Triggered checkpoint 3430 | -8/Garrison | Garrison Relay disabled 3552 | -8/Garrison | Triggered checkpoint 3688 | -8/Garrison | Triggered checkpoint 3705 | -8/Garrison | Garrison Relay disabled 3739 | -8/Garrison | Discovered new exit (range 12) 3813 | -8/Garrison | Garrison Relay disabled 3852 | -8/Garrison | Garrison Relay disabled 3919 | -8/Garrison | Garrison Relay disabled 3921 | -8/Garrison | Garrison Relay disabled 4048 | -8/Garrison | Triggered checkpoint 4205 | -8/Garrison | Triggered checkpoint 4260 | -8/Garrison | Discovered new exit (range 14) 4304 | -8/Garrison | Triggered checkpoint 4389 | -8/Garrison | Garrison Relay disabled 4557 | -8/Garrison | Phase Generator disabled 4702 | -8/Garrison | Triggered checkpoint 4707 | -8/Garrison | Garrison Relay disabled 4740 | -8/Garrison | Discovered new exit (range 10) 4747 | -8/Garrison | Build established: Scavenger-Gunner 4805 | -8/Garrison | Triggered checkpoint 5181 | -8/Garrison | Entered Materials 5182 | -8/Materials | Loaded intel: 12 terminal locations 5220 | -8/Materials | Identified exit to Garrison 5220 | -8/Materials | Entered Garrison 5294 | -8/Garrison | Triggered checkpoint 5332 | -8/Garrison | Lost 3 parts (1u2w) 5333 | -8/Garrison | System corruption reached 10% 5374 | -8/Garrison | Garrison Relay disabled 5405 | -8/Garrison | Garrison Relay disabled 5418 | -8/Garrison | Triggered checkpoint 5598 | -8/Garrison | Build established: Scavenger-Tank 5626 | -8/Garrison | Triggered checkpoint 5631 | -8/Garrison | Triggered checkpoint 5645 | -8/Garrison | Triggered checkpoint 5666 | -8/Garrison | Destroyed 8 combat bots 5691 | -8/Garrison | Core integrity fell below 50% 5721 | -8/Garrison | Lost 3 parts (3n) 5732 | -8/Garrison | Destroyed 8 combat bots 5904 | -8/Garrison | Triggered checkpoint 5943 | -8/Garrison | Garrison Relay disabled 5968 | -8/Garrison | Discovered exit to Storage (range 10) 6185 | -8/Garrison | Phase Generator disabled 6359 | -8/Garrison | Garrison Relay disabled 6434 | -8/Garrison | Discovered exit to Storage (range 10) 6481 | -8/Garrison | Build established: Scavenger-Gunner 6597 | -8/Garrison | Discovered exit to Storage (range 68) 6597 | -8/Garrison | Discovered exit to Storage (range 36) 6597 | -8/Garrison | Discovered exit to Storage (range 38) 6612 | -8/Garrison | Triggered checkpoint 6616 | -8/Garrison | Garrison Relay disabled 6875 | -8/Garrison | Entered Storage 7202 | -8/Storage | Build established: Scavenger-Tank 7275 | -8/Storage | First assault squad dispatched 7347 | -8/Storage | Destroyed 13 combat bots 7388 | -8/Storage | Discovered new exit (range 16) 7613 | -8/Storage | Assisted by bots powering up and referring to "LRC-V3" 7629 | -8/Storage | Met a pair of Derelict thieves 7730 | -8/Storage | Core integrity fell below 20% 7752 | -8/Storage | Attached Flightbrick, gained temporary slots: Utility x3 7761 | -8/Storage | Used back door to open Recycling access 7761 | -8/Storage | Discovered new exit (range 5) 7763 | -8/Storage | Entered Recycling 7764 | -8/Recycling | Lost 12 allies 7781 | -8/Recycling | Lost 3 parts (3n) 8014 | -8/Recycling | Discovered new exit (range 15) 8128 | -8/Recycling | Entered Scraplab 8136 | -8/Recycling | Build established: Mutant 8157 | -8/Recycling | Destroyed by RE-ZTH(R) with Subdweller Laser Last Messages --------------- 08009_ Acquired Lyr. Light Armor Plating. 08011_ System corrupted: FCS attempts to trigger Minigun. 08011_ System corrupted: Minigun misfires. 08011_ Destroyed Scrap Shield. 08011_ Acquired 34 matter. 08012_ Drone released from Drone Bay. 08014_ EXIT=FOUND 08023_ R6-PAZ(R) destroyed. 08024_ Acquired 4 matter. 08049_ System corrupted: Heat flow error (+253). 08064_ 9AOTXLAL=IRXNZM:14A =T